Workbook

Sheet Dataset
B2: "ABC" Company
B4: Product | C4: Price | D4: Discounted Price | E4: >2000 or not
B5: Orange | C5: 1477 | D5: =C5-C5*0.06 -> 1388.38 | E5: =IF(C5>2000,"Yes","Small Value") -> Small Value
B6: Apple | C6: 1574 | D6: =C6-C6*0.06 -> 1479.56 | E6: =IF(C6>2000,"Yes","Small Value") -> Small Value
B7: Kiwi | C7: 3458 | D7: =C7-C7*0.06 -> 3250.52 | E7: =IF(C7>2000,"Yes","Small Value") -> Yes
B8: Watermelon | C8: 2507 | D8: =C8-C8*0.06 -> 2356.58 | E8: =IF(C8>2000,"Yes","Small Value") -> Yes
B9: Banana | C9: 3101 | D9: =C9-C9*0.06 -> 2914.94 | E9: =IF(C9>2000,"Yes","Small Value") -> Yes
B10: Avocado | C10: 2672 | D10: =C10-C10*0.06 -> 2511.68 | E10: =IF(C10>2000,"Yes","Small Value") -> Yes
B11: Lemon | C11: 1695 | D11: =C11-C11*0.06 -> 1593.3 | E11: =IF(C11>2000,"Yes","Small Value") -> Small Value
B12: Tomato | C12: 3511 | D12: =C12-C12*0.06 -> 3300.34 | E12: =IF(C12>2000,"Yes","Small Value") -> Yes
B13: Blackberry | C13: 3596 | D13: =C13-C13*0.06 -> 3380.24 | E13: =IF(C13>2000,"Yes","Small Value") -> Yes

Sheet Manually
B2: Replacing Manually
B4: Product | C4: Price | D4: >2000 or not
B5: Orange | C5: 1477 | D5: =IF(C5>2000,"Greater than 2000","Small Value") -> Small Value
B6: Apple | C6: 1574 | D6: =IF(C6>2000,"Greater than 2000","Small Value") -> Small Value
B7: Kiwi | C7: 3458 | D7: Greater than 2000
B8: Watermelon | C8: 2507 | D8: Greater than 2000
B9: Banana | C9: 3101 | D9: Greater than 2000
B10: Avocado | C10: 2672 | D10: Greater than 2000
B11: Lemon | C11: 1695 | D11: Small Value
B12: Tomato | C12: 3511 | D12: Greater than 2000
B13: Blackberry | C13: 3596 | D13: Greater than 2000

Sheet Replace option
B2: Using Replace Option
B4: Product | C4: Price | D4: >2000 or not
B5: Orange | C5: 1477 | D5: =IF(C5>2000,"Yes","Small Value") -> Small Value
B6: Apple | C6: 1574 | D6: =IF(C6>2000,"Greater than 2000","Small Value") -> Small Value
B7: Kiwi | C7: 3458 | D7: =IF(C7>2000,"Greater than 2000","Small Value") -> Greater than 2000
B8: Watermelon | C8: 2507 | D8: =IF(C8>2000,"Greater than 2000","Small Value") -> Greater than 2000
B9: Banana | C9: 3101 | D9: =IF(C9>2000,"Greater than 2000","Small Value") -> Greater than 2000
B10: Avocado | C10: 2672 | D10: =IF(C10>2000,"Greater than 2000","Small Value") -> Greater than 2000
B11: Lemon | C11: 1695 | D11: =IF(C11>2000,"Greater than 2000","Small Value") -> Small Value
B12: Tomato | C12: 3511 | D12: =IF(C12>2000,"Greater than 2000","Small Value") -> Greater than 2000
B13: Blackberry | C13: 3596 | D13: =IF(C13>2000,"Greater than 2000","Small Value") -> Greater than 2000

Sheet Go to Special
B2: Go to Special Option
B4: Product | C4: Price | D4: >2000 or not
B5: Orange | C5: 1477 | D5: =IF(C5>2000,"Greater than 2000","Small Value") -> Small Value
B6: Apple | C6: 1574 | D6: =IF(C6>2000,"Greater than 2000","Small Value") -> Small Value
B7: Kiwi | C7: 3458 | D7: =IF(C7>2000,"Greater than 2000","Small Value") -> Greater than 2000
B8: Watermelon | C8: 2507 | D8: =IF(C8>2000,"Greater than 2000","Small Value") -> Greater than 2000
B9: Banana | C9: 3101 | D9: =IF(C9>2000,"Greater than 2000","Small Value") -> Greater than 2000
B10: Avocado | C10: 2672 | D10: =IF(C10>2000,"Greater than 2000","Small Value") -> Greater than 2000
B11: Lemon | C11: 1695 | D11: =IF(C11>2000,"Greater than 2000","Small Value") -> Small Value
B12: Tomato | C12: 3511 | D12: =IF(C12>2000,"Greater than 2000","Small Value") -> Greater than 2000
B13: Blackberry | C13: 3596 | D13: =IF(C13>2000,"Greater than 2000","Small Value") -> Greater than 2000

Sheet shortcut key
B2: Shortcut Key
B4: Product | C4: Price | D4: >2000 or not
B5: Orange | C5: 1477 | D5: =IF(C5>2000,"Greater than 2000","Small Value") -> Small Value
B6: Apple | C6: 1574 | D6: =IF(C6>2000,"Greater than 2000","Small Value") -> Small Value
B7: Kiwi | C7: 3458 | D7: =IF(C7>2000,"Greater than 2000","Small Value") -> Greater than 2000
B8: Watermelon | C8: 2507 | D8: =IF(C8>2000,"Greater than 2000","Small Value") -> Greater than 2000
B9: Banana | C9: 3101 | D9: =IF(C9>2000,"Greater than 2000","Small Value") -> Greater than 2000
B10: Avocado | C10: 2672 | D10: =IF(C10>2000,"Greater than 2000","Small Value") -> Greater than 2000
B11: Lemon | C11: 1695 | D11: =IF(C11>2000,"Greater than 2000","Small Value") -> Small Value
B12: Tomato | C12: 3511 | D12: =IF(C12>2000,"Greater than 2000","Small Value") -> Greater than 2000
B13: Blackberry | C13: 3596 | D13: =IF(C13>2000,"Greater than 2000","Small Value") -> Greater than 2000

Sheet VBA
B2: Using VBA Code
B4: Product | C4: Price | D4: Discounted Price
B5: Orange | C5: 1477 | D5: =C5-C5*0.04 -> 1417.92
B6: Apple | C6: 1574 | D6: =C6-C6*0.04 -> 1511.04
B7: Kiwi | C7: 3458 | D7: =C7-C7*0.04 -> 3319.68
B8: Watermelon | C8: 2507 | D8: =C8-C8*0.04 -> 2406.72
B9: Banana | C9: 3101 | D9: =C9-C9*0.04 -> 2976.96
B10: Avocado | C10: 2672 | D10: =C10-C10*0.04 -> 2565.12
B11: Lemon | C11: 1695 | D11: =C11-C11*0.04 -> 1627.2
B12: Tomato | C12: 3511 | D12: =C12-C12*0.04 -> 3370.56
B13: Blackberry | C13: 3596 | D13: =C13-C13*0.04 -> 3452.16

Sheet SUBSTITUTE
B2: SUBSTITUTE and FORMULATEXT Function
B4: Product | C4: Price | D4: Discounted Price | E4: Formula | F4: New Price
B5: Orange | C5: 1477 | D5: =C5-C5*0.06 -> 1388.38 | E5: =SUBSTITUTE(_xlfn.FORMULATEXT(D5),0.06,0.04) -> =C5-C5*0.04 | F5: =EVAL(E5) -> 1417.92
B6: Apple | C6: 1574 | D6: =C6-C6*0.06 -> 1479.56 | E6: =SUBSTITUTE(_xlfn.FORMULATEXT(D6),0.06,0.04) -> =C6-C6*0.04 | F6: =EVAL(E6) -> 1511.04
B7: Kiwi | C7: 3458 | D7: =C7-C7*0.06 -> 3250.52 | E7: =C7-C7*0.04 | F7: =EVAL(E7) -> 3319.68
B8: Watermelon | C8: 2507 | D8: =C8-C8*0.06 -> 2356.58 | E8: =C8-C8*0.04 | F8: =EVAL(E8) -> 2406.72
B9: Banana | C9: 3101 | D9: =C9-C9*0.06 -> 2914.94 | E9: =C9-C9*0.04 | F9: =EVAL(E9) -> 2976.96
B10: Avocado | C10: 2672 | D10: =C10-C10*0.06 -> 2511.68 | E10: =C10-C10*0.04 | F10: =EVAL(E10) -> 2565.12
B11: Lemon | C11: 1695 | D11: =C11-C11*0.06 -> 1593.3 | E11: =C11-C11*0.04 | F11: =EVAL(E11) -> 1627.2
B12: Tomato | C12: 3511 | D12: =C12-C12*0.06 -> 3300.34 | E12: =C12-C12*0.04 | F12: =EVAL(E12) -> 3370.56
B13: Blackberry | C13: 3596 | D13: =C13-C13*0.06 -> 3380.24 | E13: =C13-C13*0.04 | F13: =EVAL(E13) -> 3452.16

Sheet REPLACE
B2: REPLACE and FORMULATEXT Function
B4: Product | C4: Price | D4: Discounted Price | E4: Formula | F4: New Price
B5: Orange | C5: 1477 | D5: =C5-C5*0.06 -> 1388.38 | E5: =REPLACE(_xlfn.FORMULATEXT(D5),FIND("*",_xlfn.FORMULATEXT(D5),1)+1,4,0.04) -> =C5-C5*0.04 | F5: =EVAL(E5) -> 1417.92
B6: Apple | C6: 1574 | D6: =C6-C6*0.06 -> 1479.56 | E6: =REPLACE(_xlfn.FORMULATEXT(D6),FIND("*",_xlfn.FORMULATEXT(D6),1)+1,4,0.04) -> =C6-C6*0.04 | F6: =EVAL(E6) -> 1511.04
B7: Kiwi | C7: 3458 | D7: =C7-C7*0.06 -> 3250.52 | E7: =C7-C7*0.04 | F7: =EVAL(E7) -> 3319.68
B8: Watermelon | C8: 2507 | D8: =C8-C8*0.06 -> 2356.58 | E8: =C8-C8*0.04 | F8: =EVAL(E8) -> 2406.72
B9: Banana | C9: 3101 | D9: =C9-C9*0.06 -> 2914.94 | E9: =C9-C9*0.04 | F9: =EVAL(E9) -> 2976.96
B10: Avocado | C10: 2672 | D10: =C10-C10*0.06 -> 2511.68 | E10: =C10-C10*0.04 | F10: =EVAL(E10) -> 2565.12
B11: Lemon | C11: 1695 | D11: =C11-C11*0.06 -> 1593.3 | E11: =C11-C11*0.04 | F11: =EVAL(E11) -> 1627.2
B12: Tomato | C12: 3511 | D12: =C12-C12*0.06 -> 3300.34 | E12: =C12-C12*0.04 | F12: =EVAL(E12) -> 3370.56
B13: Blackberry | C13: 3596 | D13: =C13-C13*0.06 -> 3380.24 | E13: =C13-C13*0.04 | F13: =EVAL(E13) -> 3452.16

Sheet Practice
B2: Practice
B4: Product | C4: Price | D4: Discounted Price | E4: >2000 or not
B5: Orange | C5: 1477 | D5: =C5-C5*0.06 -> 1388.38 | E5: =IF(C5>2000,"Yes","Small Value") -> Small Value
B6: Apple | C6: 1574 | D6: =C6-C6*0.06 -> 1479.56 | E6: =IF(C6>2000,"Yes","Small Value") -> Small Value
B7: Kiwi | C7: 3458 | D7: =C7-C7*0.06 -> 3250.52 | E7: =IF(C7>2000,"Yes","Small Value") -> Yes
B8: Watermelon | C8: 2507 | D8: =C8-C8*0.06 -> 2356.58 | E8: =IF(C8>2000,"Yes","Small Value") -> Yes
B9: Banana | C9: 3101 | D9: =C9-C9*0.06 -> 2914.94 | E9: =IF(C9>2000,"Yes","Small Value") -> Yes
B10: Avocado | C10: 2672 | D10: =C10-C10*0.06 -> 2511.68 | E10: =IF(C10>2000,"Yes","Small Value") -> Yes
B11: Lemon | C11: 1695 | D11: =C11-C11*0.06 -> 1593.3 | E11: =IF(C11>2000,"Yes","Small Value") -> Small Value
B12: Tomato | C12: 3511 | D12: =C12-C12*0.06 -> 3300.34 | E12: =IF(C12>2000,"Yes","Small Value") -> Yes
B13: Blackberry | C13: 3596 | D13: =C13-C13*0.06 -> 3380.24 | E13: =IF(C13>2000,"Yes","Small Value") -> Yes
